﻿Department,Entity,Date,ExpenseType,ExpenseArea,Supplier,Payment Number,InvoiceDistribution Amount,InvoiceDescription,SupplierPostCode,Expenditure Type
FOOD STANDARDS AGENCY - Westminster,FOOD STANDARDS AGENCY - Westminster,2021-08-02,EXP - PURCHASE OF GOODS/SERVICES - OTHER - PROGRAMME EXPENDITURE,"NOVEL FOODS, GM, RADIOLOGICAL AND FEED ADDITIVES",C E F A S,2011700082,78695.79,Redacted under S40 FOI act,NR33 0HT,Admin
FOOD STANDARDS AGENCY - Westminster,FOOD STANDARDS AGENCY - Westminster,2021-08-02,EXP - PURCHASE OF GOODS/SERVICES - OTHER - PROGRAMME EXPENDITURE,"NOVEL FOODS, GM, RADIOLOGICAL AND FEED ADDITIVES",C E F A S,2011700082,78695.79,Redacted under S40 FOI act,NR33 0HT,Admin
FOOD STANDARDS AGENCY - Westminster,FOOD STANDARDS AGENCY - Westminster,2021-08-02,EXP - PURCHASE OF GOODS/SERVICES - OTHER - PROGRAMME EXPENDITURE,"NOVEL FOODS, GM, RADIOLOGICAL AND FEED ADDITIVES",C E F A S,2011700082,78695.83,Redacted under S40 FOI act,NR33 0HT,Admin
FOOD STANDARDS AGENCY - Westminster,FOOD STANDARDS AGENCY - Westminster,2021-08-02,EXP - PURCHASE OF GOODS/SERVICES - ACCOMM & BLDNG MGMT - SHARED SITE RECHARGE,SECURITY & ESTATES,MINISTRY OF JUSTICE,2011700083,-12102,Clive House CIVIL ESTATE OCCUPANCYShort Leasehold Property and Maintenance   bulk PO,NP209BB,Admin
FOOD STANDARDS AGENCY - Westminster,FOOD STANDARDS AGENCY - Westminster,2021-08-02,EXP - PURCHASE OF GOODS/SERVICES - ACCOMM & BLDNG MGMT - SHARED SITE RECHARGE,SECURITY & ESTATES,MINISTRY OF JUSTICE,2011700083,151473.75,Clive House CIVIL ESTATE OCCUPANCYShort Leasehold Property and Maintenance   bulk PO,NP209BB,Admin
FOOD STANDARDS AGENCY - Westminster,FOOD STANDARDS AGENCY - Westminster,2021-08-02,EXP - AMORTISATION - INTANGIBLE ASSETS,IT SERVICE DELIVERY,LITTLE FISH UK LTD,1011716494,17775,Tech Refresh Rollout (BC699),NG1 1LS,Capital
FOOD STANDARDS AGENCY - Westminster,FOOD STANDARDS AGENCY - Westminster,2021-08-02,EXP - AMORTISATION - INTANGIBLE ASSETS,IT SERVICE DELIVERY,LITTLE FISH UK LTD,1011716494,3555,UK VAT - UK VAT,NG1 1LS,Capital
FOOD STANDARDS AGENCY - Westminster,FOOD STANDARDS AGENCY - Westminster,2021-08-02,EXP - AMORTISATION - INTANGIBLE ASSETS,IT SERVICE DELIVERY,LITTLE FISH UK LTD,1011716494,6260.4,Patch My PC Redacted under S43 FOI Act (BC699),NG1 1LS,Capital
FOOD STANDARDS AGENCY - Westminster,FOOD STANDARDS AGENCY - Westminster,2021-08-02,EXP - AMORTISATION - INTANGIBLE ASSETS,IT SERVICE DELIVERY,LITTLE FISH UK LTD,1011716494,1252.08,UK VAT - UK VAT,NG1 1LS,Capital
FOOD STANDARDS AGENCY - Westminster,FOOD STANDARDS AGENCY - Westminster,2021-08-03,EXP - PURCHASE OF GOODS/SERVICES - OTHER - PROGRAMME EXPENDITURE,"SCIENCE STRATEGY, CAPABILITY AND RESEARCH",UNIVERSITY COLLEGE LONDON,1011716507,93657.4,Post-Doctoral Research Fellow in Data Science (Deliverable 4),WC1E 6BT,Admin
FOOD STANDARDS AGENCY - Westminster,FOOD STANDARDS AGENCY - Westminster,2021-08-03,EXP - PURCHASE OF GOODS/SERV - SUPPORT - IT SUPPORT SERVICES,IT SERVICE DELIVERY,CIVICA UK LTD,1011716504,40640.18,FSA672  WP31  Application Support Monthly Charge Final Year (extension),DY1 4TD,Admin
FOOD STANDARDS AGENCY - Westminster,FOOD STANDARDS AGENCY - Westminster,2021-08-03,EXP - PURCHASE OF GOODS/SERVICES - OTHER ICT COSTS - COMPUTER HARDWARE,IT SERVICE DELIVERY,METHODS BUSINESS AND DIGITAL TECHNOLOGY LTD,1011716514,33132.5,FS430635 Cloud Infrastructure Management (BC695),EC1A 4EN,Admin
FOOD STANDARDS AGENCY - Westminster,FOOD STANDARDS AGENCY - Westminster,2021-08-03,EXP - PURCHASE OF GOODS/SERVICES - OTHER ICT COSTS - COMPUTER HARDWARE,IT SERVICE DELIVERY,METHODS BUSINESS AND DIGITAL TECHNOLOGY LTD,1011716514,6626.5,UK VAT - UK VAT,EC1A 4EN,Admin
FOOD STANDARDS AGENCY - Westminster,FOOD STANDARDS AGENCY - Westminster,2021-08-04,EXP - PURCHASE OF GOODS/SERVICES- OTHER - PROGRAMME EXP - LOCAL AUTHORITY GRANTS,ANIMAL FEED,TRADING STANDARDS INSTITUTE (GRANTS),1011716523,29827.3,Feed Off. Costs Redacted under S43 FOI Act Prog delivery (FH@PP). Feed Official Controls funding Redacted under S43 FOI Act. To deliver a programme of Official Controls (Food Hygiene at Primary Production) in Redacted under S43 FOI Act. (FS211003),SS15 6TH,Admin
FOOD STANDARDS AGENCY - Westminster,FOOD STANDARDS AGENCY - Westminster,2021-08-04,EXP - PURCHASE OF GOODS/SERVICES- OTHER - PROGRAMME EXP - LOCAL AUTHORITY GRANTS,ANIMAL FEED,TRADING STANDARDS INSTITUTE (GRANTS),1011716523,146251.22,Feed Off. Costs Redacted under S43 FOI Act Prog delivery (inland/ports). Feed Official Controls funding Redacted under S43 FOI Act. To deliver a programme of Official Controls (inland inspections/sampling & ports work) in Redacted under S43 FOI Act. (FS225002),SS15 6TH,Admin
FOOD STANDARDS AGENCY - Westminster,FOOD STANDARDS AGENCY - Westminster,2021-08-05,EXP - PURCHASE OF GOODS/SERVICES - TELECOMS - MOBILE PHONES,IT SERVICE DELIVERY,EE LTD,1011716532,22952.56,EE Monthly Charges - Redacted under S43 FOI Act,AL10 9BW,Admin
FOOD STANDARDS AGENCY - Westminster,FOOD STANDARDS AGENCY - Westminster,2021-08-05,EXP - PURCHASE OF GOODS/SERVICES - TELECOMS - MOBILE PHONES,IT SERVICE DELIVERY,EE LTD,1011716532,4588.12,UK VAT - UK VAT,AL10 9BW,Admin
FOOD STANDARDS AGENCY - Westminster,FOOD STANDARDS AGENCY - Westminster,2021-08-06,EXP - PURCHASE OF GOODS/SERVICES - OTHER - PROGRAMME EXPENDITURE,DIGITAL,I10 LTD,1011716539,12770,FSA728 WP28 Consultations Discovery (BC821),NG31 6JL,Admin
FOOD STANDARDS AGENCY - Westminster,FOOD STANDARDS AGENCY - Westminster,2021-08-06,EXP - PURCHASE OF GOODS/SERVICES - OTHER - PROGRAMME EXPENDITURE,DIGITAL,I10 LTD,1011716539,2554,UK VAT - UK VAT,NG31 6JL,Admin
FOOD STANDARDS AGENCY - Westminster,FOOD STANDARDS AGENCY - Westminster,2021-08-06,EXP - PURCHASE OF GOODS/SERVICES - OTHER - PROGRAMME EXPENDITURE,DIGITAL,I10 LTD,1011716539,29375,FSA728 WP27 Risk Analysis Discovery & Alpha (BC822),NG31 6JL,Admin
FOOD STANDARDS AGENCY - Westminster,FOOD STANDARDS AGENCY - Westminster,2021-08-06,EXP - PURCHASE OF GOODS/SERVICES - OTHER - PROGRAMME EXPENDITURE,DIGITAL,I10 LTD,1011716539,5875,UK VAT - UK VAT,NG31 6JL,Admin
FOOD STANDARDS AGENCY - Westminster,FOOD STANDARDS AGENCY - Westminster,2021-08-06,EXP - PURCHASE OF GOODS/SERVICES - OTHER - PROGRAMME EXPENDITURE,NFCU II - Prevention and Investigation,HOME OFFICE,2011700086,30000,Home Office:NFCU's use of NAS and PND,NP20 9BB,Admin
FOOD STANDARDS AGENCY - Westminster,FOOD STANDARDS AGENCY - Westminster,2021-08-06,EXP - PURCHASE OF GOODS/SERVICES - OTHER - PROGRAMME EXPENDITURE,NFCU II - Prevention and Investigation,HOME OFFICE,2011700086,6000,UK VAT - UK VAT,NP20 9BB,Admin
FOOD STANDARDS AGENCY - Westminster,FOOD STANDARDS AGENCY - Westminster,2021-08-09,EXP - PURCHASE OF GOODS/SERVICES - OTHER,ANALYTICS UNIT,UNIVERSITY OF PORTSMOUTH,1011716558,51743.2,FS430643 - Cost of Food Crime Phase 2,PO1 2UP,Admin
FOOD STANDARDS AGENCY - Westminster,FOOD STANDARDS AGENCY - Westminster,2021-08-10,EXP - PURCHASE OF GOODS/SERVICES - OTHER - PROGRAMME EXPENDITURE,FOOD HYPERSENSITIVITIES,R S M UK CONSULTING LLP,1011716569,60816,FS430387 Estimating The Financial Cost To Individual Sufferers Living With A Food Hypersensitivity,EC4A 4AB,Admin
FOOD STANDARDS AGENCY - Westminster,FOOD STANDARDS AGENCY - Westminster,2021-08-11,EXP - AMORTISATION - INTANGIBLE ASSETS,Surveillance,COGNIZANT WORLDWIDE LTD,1011716584,74070,FSA715 WP15 - FSA Surveillance Programme  FHRS AI Enhancement (BC840),W2 6BD,Capital
FOOD STANDARDS AGENCY - Westminster,FOOD STANDARDS AGENCY - Westminster,2021-08-11,EXP - AMORTISATION - INTANGIBLE ASSETS,Surveillance,COGNIZANT WORLDWIDE LTD,1011716584,14814,UK VAT - UK VAT,W2 6BD,Capital
FOOD STANDARDS AGENCY - Westminster,FOOD STANDARDS AGENCY - Westminster,2021-08-12,EXP - PURCHASE OF GOODS/SERVICES - OTHER - PROGRAMME EXPENDITURE,"NOVEL FOODS, GM, RADIOLOGICAL AND FEED ADDITIVES",C E F A S,2011700092,78695.79,Redacted under S40 FOI act,NR33 0HT,Admin
FOOD STANDARDS AGENCY - Westminster,FOOD STANDARDS AGENCY - Westminster,2021-08-16,EXP - PURCHASE OF GOODS/SERVICES - OTHER - PROGRAMME EXPENDITURE,ANALYTICS UNIT,IPSOS MORI,1011716632,9142,FS302001 Food & You Wave 6 ,E1W 1YW,Admin
FOOD STANDARDS AGENCY - Westminster,FOOD STANDARDS AGENCY - Westminster,2021-08-16,EXP - PURCHASE OF GOODS/SERVICES - OTHER - PROGRAMME EXPENDITURE,ANALYTICS UNIT,IPSOS MORI,1011716632,93844,Food and You 2 - new line on PO11770005831 required,E1W 1YW,Admin
FOOD STANDARDS AGENCY - Westminster,FOOD STANDARDS AGENCY - Westminster,2021-08-16,EXP - PURCHASE OF GOODS/SERVICES - OTHER - PROGRAMME EXPENDITURE,REGULATORY DELIVERY,TRADING STANDARDS SOUTH WEST,1011716623,6410,TSSW: supplier to create e-books and an e-learning module,BS21 6FW,Admin
FOOD STANDARDS AGENCY - Westminster,FOOD STANDARDS AGENCY - Westminster,2021-08-16,EXP - PURCHASE OF GOODS/SERVICES - OTHER - PROGRAMME EXPENDITURE,REGULATORY DELIVERY,TRADING STANDARDS SOUTH WEST,1011716623,21750.5,TSSW: supplier to create e-books and an e-learning module,BS21 6FW,Admin
FOOD STANDARDS AGENCY - Westminster,FOOD STANDARDS AGENCY - Westminster,2021-08-18,EXP - PURCHASE OF GOODS/SERVICES - OTHER - PROGRAMME EXPENDITURE,DIGITAL,I10 LTD,1011716642,2100,FSA728 WP29 Power Apps Support (BC759),NG31 6JL,Admin
FOOD STANDARDS AGENCY - Westminster,FOOD STANDARDS AGENCY - Westminster,2021-08-18,EXP - PURCHASE OF GOODS/SERVICES - OTHER - PROGRAMME EXPENDITURE,DIGITAL,I10 LTD,1011716642,420,UK VAT - UK VAT,NG31 6JL,Admin
FOOD STANDARDS AGENCY - Westminster,FOOD STANDARDS AGENCY - Westminster,2021-08-18,EXP - PURCHASE OF GOODS/SERVICES - OTHER - PROGRAMME EXPENDITURE,Surveillance,I10 LTD,1011716642,14125.28,FSA728 WP20 Reducing Friction in International Trade (BC762),NG31 6JL,Admin
FOOD STANDARDS AGENCY - Westminster,FOOD STANDARDS AGENCY - Westminster,2021-08-18,EXP - PURCHASE OF GOODS/SERVICES - OTHER - PROGRAMME EXPENDITURE,Surveillance,I10 LTD,1011716642,2825.06,UK VAT - UK VAT,NG31 6JL,Admin
FOOD STANDARDS AGENCY - Westminster,FOOD STANDARDS AGENCY - Westminster,2021-08-18,EXP - PURCHASE OF GOODS/SERVICES - OTHER - PROGRAMME EXPENDITURE,DIGITAL,I10 LTD,1011716642,7500,"FSA728 WP25 Safer Food, Better Business (BC 759)",NG31 6JL,Admin
FOOD STANDARDS AGENCY - Westminster,FOOD STANDARDS AGENCY - Westminster,2021-08-18,EXP - PURCHASE OF GOODS/SERVICES - OTHER - PROGRAMME EXPENDITURE,DIGITAL,I10 LTD,1011716642,22684.38,FSA728 - WP30 Ernie Part 1 (BC759),NG31 6JL,Admin
FOOD STANDARDS AGENCY - Westminster,FOOD STANDARDS AGENCY - Westminster,2021-08-18,EXP - PURCHASE OF GOODS/SERVICES - OTHER - PROGRAMME EXPENDITURE,DIGITAL,I10 LTD,1011716642,4536.88,UK VAT - UK VAT,NG31 6JL,Admin
FOOD STANDARDS AGENCY - Westminster,FOOD STANDARDS AGENCY - Westminster,2021-08-18,EXP - PURCHASE OF GOODS/SERVICES - OTHER FACILTIES COSTS - SECURITY,"DATA, INFORMATION, GOVERNANCE AND SECURITY",I10 LTD,1011716642,1525,FSA728 - WP032 Security Approach Review (BC763),NG31 6JL,Admin
FOOD STANDARDS AGENCY - Westminster,FOOD STANDARDS AGENCY - Westminster,2021-08-18,EXP - PURCHASE OF GOODS/SERVICES - OTHER FACILTIES COSTS - SECURITY,"DATA, INFORMATION, GOVERNANCE AND SECURITY",I10 LTD,1011716642,305,UK VAT - UK VAT,NG31 6JL,Admin
FOOD STANDARDS AGENCY - Westminster,FOOD STANDARDS AGENCY - Westminster,2021-08-19,Redacted under S43 FOI Act,RISK ASSESSMENT - RESEARCH AND DEVELOPMENT,Redacted under S43 FOI Act,1011716647,87256.5,Redacted under S43 FOI Act,YO41 1LZ,Admin
FOOD STANDARDS AGENCY - Westminster,FOOD STANDARDS AGENCY - Westminster,2021-08-19,Redacted under S43 FOI Act,RISK ASSESSMENT - RESEARCH AND DEVELOPMENT,Redacted under S43 FOI Act,1011716647,29085.5,Redacted under S43 FOI Act,YO41 1LZ,Admin
FOOD STANDARDS AGENCY - Westminster,FOOD STANDARDS AGENCY - Westminster,2021-08-19,EXP - PURCHASE OF GOODS/SERVICES - OTHER - CARRIAGE OF SAMPLES,OPERATIONAL DELIVERY,TOPSPEED COURIERS LIMITED,1011716649,40,Topspeed - RIM collections,WA16 8XN,Admin
FOOD STANDARDS AGENCY - Westminster,FOOD STANDARDS AGENCY - Westminster,2021-08-19,EXP - PURCHASE OF GOODS/SERVICES - OTHER - CARRIAGE OF SAMPLES,OPERATIONAL DELIVERY,TOPSPEED COURIERS LIMITED,1011716649,15939,Topspeed Couriers - Collection of RIM samples,WA16 8XN,Admin
FOOD STANDARDS AGENCY - Westminster,FOOD STANDARDS AGENCY - Westminster,2021-08-19,EXP - PURCHASE OF GOODS/SERVICES - OTHER - CARRIAGE OF SAMPLES,OPERATIONAL DELIVERY,TOPSPEED COURIERS LIMITED,1011716649,5216.96,Topspeed - Collect and Deliver TB samples to APHA,WA16 8XN,Admin
FOOD STANDARDS AGENCY - Westminster,FOOD STANDARDS AGENCY - Westminster,2021-08-19,EXP - PURCHASE OF GOODS/SERVICES - OTHER - CARRIAGE OF SAMPLES,OPERATIONAL DELIVERY,TOPSPEED COURIERS LIMITED,1011716649,52.5,Topspeed - TB samples,WA16 8XN,Admin
FOOD STANDARDS AGENCY - Westminster,FOOD STANDARDS AGENCY - Westminster,2021-08-20,Redacted under S43 FOI Act,OPERATIONAL DELIVERY,Redacted under S43 FOI Act,1011716664,28200,VARIATION 11 & 12 Redacted under S43 FOI Act,LS15 8ZB,Admin
FOOD STANDARDS AGENCY - Westminster,FOOD STANDARDS AGENCY - Westminster,2021-08-20,EXP - PURCHASE OF GOODS/SERVICES - OTHER - PROGRAMME EXPENDITURE,SCIENTIFIC METHODS AND LABORATORY POLICY,UK HEALTH SECURITY AGENCY,2011700096,65471.83,FS516010 - National Reference Laboratory for Microbiology,NW9 5EQ,Admin
FOOD STANDARDS AGENCY - Westminster,FOOD STANDARDS AGENCY - Westminster,2021-08-23,EXP - PURCHASE OF GOODS/SERVICES - IT MANAGEMENT AND CHANGE - IT DEVELOPMENT,"DATA, INFORMATION, GOVERNANCE AND SECURITY",I10 LTD,1011716669,38325,FSA728 - WP26 Sharepoint Architecture - Pilot (BC779),NG31 6JL,Admin
FOOD STANDARDS AGENCY - Westminster,FOOD STANDARDS AGENCY - Westminster,2021-08-23,EXP - PURCHASE OF GOODS/SERVICES - IT MANAGEMENT AND CHANGE - IT DEVELOPMENT,"DATA, INFORMATION, GOVERNANCE AND SECURITY",I10 LTD,1011716669,7665,UK VAT - UK VAT,NG31 6JL,Admin
FOOD STANDARDS AGENCY - Westminster,FOOD STANDARDS AGENCY - Westminster,2021-08-23,EXP - PURCHASE OF GOODS/SERVICES - PERSONNEL RELATED - MEMBERSHIP OF ORGANISATIONS,IT SERVICE DELIVERY,CSC COMPUTER SCIENCES LTD,1011716675,30000,LEF Membership - Redacted under S43 FOI Act,GU11 1PZ,Admin
FOOD STANDARDS AGENCY - Westminster,FOOD STANDARDS AGENCY - Westminster,2021-08-23,EXP - PURCHASE OF GOODS/SERVICES - PERSONNEL RELATED - MEMBERSHIP OF ORGANISATIONS,IT SERVICE DELIVERY,CSC COMPUTER SCIENCES LTD,1011716675,6000,UK VAT - UK VAT,GU11 1PZ,Admin
FOOD STANDARDS AGENCY - Westminster,FOOD STANDARDS AGENCY - Westminster,2021-08-23,EXP - PURCHASE OF GOODS/SERVICES - TELECOMS - MOBILE PHONES,IT SERVICE DELIVERY,EE LTD,1011716674,23051.67,EE Monthly Charges - Redacted under S43 FOI Act,AL10 9BW,Admin
FOOD STANDARDS AGENCY - Westminster,FOOD STANDARDS AGENCY - Westminster,2021-08-23,EXP - PURCHASE OF GOODS/SERVICES - TELECOMS - MOBILE PHONES,IT SERVICE DELIVERY,EE LTD,1011716674,4607.34,UK VAT - UK VAT,AL10 9BW,Admin
FOOD STANDARDS AGENCY - Westminster,FOOD STANDARDS AGENCY - Westminster,2021-08-24,EXP - PURCHASE OF GOODS/SERVICES - SHARED SERV OUTSRCG- CIVIL SERV PENSION ADMIN,FINANCE,LONDON PENSIONS FUND AUTHORITY,1011716688,125000,SOP1-816237-173305-174097-LPFA ER'S,EC3N 4LP,Admin
FOOD STANDARDS AGENCY - Westminster,FOOD STANDARDS AGENCY - Westminster,2021-08-24,EXP - PURCHASE OF GOODS/SERVICES - OTHER - PROGRAMME EXPENDITURE,REGULATORY DELIVERY,C E F A S,2011700101,26032.47,Phytoplankton analysis for shellfish official controls Redacted under S43 FOI Act,NR33 0HT,Admin
FOOD STANDARDS AGENCY - Westminster,FOOD STANDARDS AGENCY - Westminster,2021-08-24,EXP - PURCHASE OF GOODS/SERVICES - OTHER - PROGRAMME EXPENDITURE,REGULATORY DELIVERY,C E F A S,2011700101,22539,Classification management - Shellfish official controls,NR33 0HT,Admin
FOOD STANDARDS AGENCY - Westminster,FOOD STANDARDS AGENCY - Westminster,2021-08-24,EXP - PURCHASE OF GOODS/SERVICES - OTHER - PROGRAMME EXPENDITURE,REGULATORY DELIVERY,C E F A S,2011700101,36961.16,Biotoxin official controls - Shellfish,NR33 0HT,Admin
FOOD STANDARDS AGENCY - Westminster,FOOD STANDARDS AGENCY - Westminster,2021-08-24,EXP - PURCHASE OF GOODS/SERVICES - TELECOMS - TELEPHONE,IT SERVICE DELIVERY,EXPONENTIAL E LTD,1011716686,23.5,WAN Provision  additional line Redacted under S43 FOI Act,E1 8EU,Admin
FOOD STANDARDS AGENCY - Westminster,FOOD STANDARDS AGENCY - Westminster,2021-08-24,EXP - PURCHASE OF GOODS/SERVICES - TELECOMS - TELEPHONE,IT SERVICE DELIVERY,EXPONENTIAL E LTD,1011716686,8442.22,WAN Provision  additional line Redacted under S43 FOI Act,E1 8EU,Admin
FOOD STANDARDS AGENCY - Westminster,FOOD STANDARDS AGENCY - Westminster,2021-08-24,EXP - PURCHASE OF GOODS/SERVICES - TELECOMS - TELEPHONE,IT SERVICE DELIVERY,EXPONENTIAL E LTD,1011716686,-11065.99,WAN Provision  additional line Redacted under S43 FOI Act,E1 8EU,Admin
FOOD STANDARDS AGENCY - Westminster,FOOD STANDARDS AGENCY - Westminster,2021-08-24,EXP - PURCHASE OF GOODS/SERVICES - TELECOMS - TELEPHONE,IT SERVICE DELIVERY,EXPONENTIAL E LTD,1011716686,-1835.41,WAN Provision  additional line Redacted under S43 FOI Act,E1 8EU,Admin
FOOD STANDARDS AGENCY - Westminster,FOOD STANDARDS AGENCY - Westminster,2021-08-24,EXP - PURCHASE OF GOODS/SERVICES - TELECOMS - TELEPHONE,IT SERVICE DELIVERY,EXPONENTIAL E LTD,1011716686,-172.53,WAN Provision  additional line Redacted under S43 FOI Act,E1 8EU,Admin
FOOD STANDARDS AGENCY - Westminster,FOOD STANDARDS AGENCY - Westminster,2021-08-24,EXP - PURCHASE OF GOODS/SERVICES - TELECOMS - TELEPHONE,IT SERVICE DELIVERY,EXPONENTIAL E LTD,1011716686,-14035.69,WAN Provision  additional line Redacted under S43 FOI Act,E1 8EU,Admin
FOOD STANDARDS AGENCY - Westminster,FOOD STANDARDS AGENCY - Westminster,2021-08-24,EXP - PURCHASE OF GOODS/SERVICES - TELECOMS - TELEPHONE,IT SERVICE DELIVERY,EXPONENTIAL E LTD,1011716686,-18324.48,Initial Transfer and rental of Redacted under S43 FOI Act PSTN Lines,E1 8EU,Admin
FOOD STANDARDS AGENCY - Westminster,FOOD STANDARDS AGENCY - Westminster,2021-08-24,EXP - PURCHASE OF GOODS/SERVICES - TELECOMS - TELEPHONE,IT SERVICE DELIVERY,EXPONENTIAL E LTD,1011716686,-3664.9,UK VAT - UK VAT,E1 8EU,Admin
FOOD STANDARDS AGENCY - Westminster,FOOD STANDARDS AGENCY - Westminster,2021-08-24,EXP - PURCHASE OF GOODS/SERVICES - TELECOMS - TELEPHONE,IT SERVICE DELIVERY,EXPONENTIAL E LTD,1011716686,23.58,Initial Transfer and rental of Redacted under S43 FOI Act PSTN Lines - additional line,E1 8EU,Admin
FOOD STANDARDS AGENCY - Westminster,FOOD STANDARDS AGENCY - Westminster,2021-08-24,EXP - PURCHASE OF GOODS/SERVICES - TELECOMS - TELEPHONE,IT SERVICE DELIVERY,EXPONENTIAL E LTD,1011716686,464.75,Initial Transfer and rental of Redacted under S43 FOI Act PSTN Lines - additional line,E1 8EU,Admin
FOOD STANDARDS AGENCY - Westminster,FOOD STANDARDS AGENCY - Westminster,2021-08-24,EXP - PURCHASE OF GOODS/SERVICES - TELECOMS - TELEPHONE,IT SERVICE DELIVERY,EXPONENTIAL E LTD,1011716686,4.72,UK VAT - UK VAT,E1 8EU,Admin
FOOD STANDARDS AGENCY - Westminster,FOOD STANDARDS AGENCY - Westminster,2021-08-24,EXP - PURCHASE OF GOODS/SERVICES - TELECOMS - TELEPHONE,IT SERVICE DELIVERY,EXPONENTIAL E LTD,1011716686,92.95,UK VAT - UK VAT,E1 8EU,Admin
FOOD STANDARDS AGENCY - Westminster,FOOD STANDARDS AGENCY - Westminster,2021-08-24,EXP - PURCHASE OF GOODS/SERVICES - TELECOMS - TELEPHONE,IT SERVICE DELIVERY,EXPONENTIAL E LTD,1011716686,-2378.84,Clive House PSTN Connections - Redacted under S43 FOI Act,E1 8EU,Admin
FOOD STANDARDS AGENCY - Westminster,FOOD STANDARDS AGENCY - Westminster,2021-08-24,EXP - PURCHASE OF GOODS/SERVICES - TELECOMS - TELEPHONE,IT SERVICE DELIVERY,EXPONENTIAL E LTD,1011716686,-475.77,UK VAT - UK VAT,E1 8EU,Admin
FOOD STANDARDS AGENCY - Westminster,FOOD STANDARDS AGENCY - Westminster,2021-08-24,EXP - PURCHASE OF GOODS/SERV - SUPPORT - IT SUPPORT SERVICES,IT SERVICE DELIVERY,EXPONENTIAL E LTD,1011716686,47.33,UK VAT - UK VAT,E1 8EU,Admin
FOOD STANDARDS AGENCY - Westminster,FOOD STANDARDS AGENCY - Westminster,2021-08-24,EXP - PURCHASE OF GOODS/SERV - SUPPORT - IT SUPPORT SERVICES,IT SERVICE DELIVERY,EXPONENTIAL E LTD,1011716686,236.67,WAN telephone additional service charges - additional line Redacted under S43 FOI Act,E1 8EU,Admin
FOOD STANDARDS AGENCY - Westminster,FOOD STANDARDS AGENCY - Westminster,2021-08-24,EXP - PURCHASE OF GOODS/SERVICES - TELECOMS - TELEPHONE,IT STRATEGY & DEVELOPMENT,EXPONENTIAL E LTD,1011716686,-145.87,IT36 WAN Var 17 - DC Connect at Enfield Data centre - additional line,E1 8EU,Admin
FOOD STANDARDS AGENCY - Westminster,FOOD STANDARDS AGENCY - Westminster,2021-08-24,EXP - PURCHASE OF GOODS/SERVICES - TELECOMS - TELEPHONE,IT STRATEGY & DEVELOPMENT,EXPONENTIAL E LTD,1011716686,-29.17,UK VAT - UK VAT,E1 8EU,Admin
FOOD STANDARDS AGENCY - Westminster,FOOD STANDARDS AGENCY - Westminster,2021-08-24,EXP - PURCHASE OF GOODS/SERVICES - OTHER ICT COSTS - COMPUTER SOFTWARE,NFCU I - Analysis,EXPONENTIAL E LTD,1011716686,522.25,EXTRA LINE: Managed router and data service,E1 8EU,Admin
FOOD STANDARDS AGENCY - Westminster,FOOD STANDARDS AGENCY - Westminster,2021-08-24,EXP - PURCHASE OF GOODS/SERVICES - OTHER ICT COSTS - COMPUTER SOFTWARE,NFCU I - Analysis,EXPONENTIAL E LTD,1011716686,522.25,EXTRA LINE: Managed router and data service,E1 8EU,Admin
FOOD STANDARDS AGENCY - Westminster,FOOD STANDARDS AGENCY - Westminster,2021-08-24,EXP - PURCHASE OF GOODS/SERVICES - OTHER ICT COSTS - COMPUTER SOFTWARE,NFCU I - Analysis,EXPONENTIAL E LTD,1011716686,522.25,Extra Line 11770004120:Managed router and data service,E1 8EU,Admin
FOOD STANDARDS AGENCY - Westminster,FOOD STANDARDS AGENCY - Westminster,2021-08-24,EXP - PURCHASE OF GOODS/SERVICES - TELECOMS - TELEPHONE,IT SERVICE DELIVERY,EXPONENTIAL E LTD,1011716686,-256.67,Clive House PSTN Connections - Annually Recurring Fee,E1 8EU,Admin
FOOD STANDARDS AGENCY - Westminster,FOOD STANDARDS AGENCY - Westminster,2021-08-24,EXP - PURCHASE OF GOODS/SERVICES - TELECOMS - TELEPHONE,IT SERVICE DELIVERY,EXPONENTIAL E LTD,1011716686,-256.67,Clive House PSTN Connections - Annually Recurring Fee,E1 8EU,Admin
FOOD STANDARDS AGENCY - Westminster,FOOD STANDARDS AGENCY - Westminster,2021-08-24,EXP - PURCHASE OF GOODS/SERVICES - TELECOMS - TELEPHONE,IT SERVICE DELIVERY,EXPONENTIAL E LTD,1011716686,-226.73,Clive House PSTN Connections - Annually Recurring Fee,E1 8EU,Admin
FOOD STANDARDS AGENCY - Westminster,FOOD STANDARDS AGENCY - Westminster,2021-08-24,EXP - PURCHASE OF GOODS/SERVICES - TELECOMS - TELEPHONE,IT SERVICE DELIVERY,EXPONENTIAL E LTD,1011716686,114.99,Clive House PSTN Connections - Annually Recurring Fee,E1 8EU,Admin
FOOD STANDARDS AGENCY - Westminster,FOOD STANDARDS AGENCY - Westminster,2021-08-24,EXP - PURCHASE OF GOODS/SERVICES - TELECOMS - TELEPHONE,IT SERVICE DELIVERY,EXPONENTIAL E LTD,1011716686,-51.33,UK VAT - UK VAT,E1 8EU,Admin
FOOD STANDARDS AGENCY - Westminster,FOOD STANDARDS AGENCY - Westminster,2021-08-24,EXP - PURCHASE OF GOODS/SERVICES - TELECOMS - TELEPHONE,IT SERVICE DELIVERY,EXPONENTIAL E LTD,1011716686,-51.33,UK VAT - UK VAT,E1 8EU,Admin
FOOD STANDARDS AGENCY - Westminster,FOOD STANDARDS AGENCY - Westminster,2021-08-24,EXP - PURCHASE OF GOODS/SERVICES - TELECOMS - TELEPHONE,IT SERVICE DELIVERY,EXPONENTIAL E LTD,1011716686,-45.35,UK VAT - UK VAT,E1 8EU,Admin
FOOD STANDARDS AGENCY - Westminster,FOOD STANDARDS AGENCY - Westminster,2021-08-24,EXP - PURCHASE OF GOODS/SERVICES - TELECOMS - TELEPHONE,IT SERVICE DELIVERY,EXPONENTIAL E LTD,1011716686,23,UK VAT - UK VAT,E1 8EU,Admin
FOOD STANDARDS AGENCY - Westminster,FOOD STANDARDS AGENCY - Westminster,2021-08-24,EXP - PURCHASE OF GOODS/SERVICES - TELECOMS - TELEPHONE,IT SERVICE DELIVERY,EXPONENTIAL E LTD,1011716686,-2675.32,Telephony Cross Connect - Redacted under S43 FOI Act Rental,E1 8EU,Admin
FOOD STANDARDS AGENCY - Westminster,FOOD STANDARDS AGENCY - Westminster,2021-08-24,EXP - PURCHASE OF GOODS/SERVICES - TELECOMS - TELEPHONE,IT SERVICE DELIVERY,EXPONENTIAL E LTD,1011716686,-535.06,UK VAT - UK VAT,E1 8EU,Admin
FOOD STANDARDS AGENCY - Westminster,FOOD STANDARDS AGENCY - Westminster,2021-08-24,EXP - PURCHASE OF GOODS/SERVICES - TELECOMS - TELEPHONE,IT SERVICE DELIVERY,EXPONENTIAL E LTD,1011716686,25.83,Telephony Cross Connect - Redacted under S43 FOI Act Rental - additional line,E1 8EU,Admin
FOOD STANDARDS AGENCY - Westminster,FOOD STANDARDS AGENCY - Westminster,2021-08-24,EXP - PURCHASE OF GOODS/SERVICES - TELECOMS - TELEPHONE,IT SERVICE DELIVERY,EXPONENTIAL E LTD,1011716686,5.17,UK VAT - UK VAT,E1 8EU,Admin
FOOD STANDARDS AGENCY - Westminster,FOOD STANDARDS AGENCY - Westminster,2021-08-24,EXP - PURCHASE OF GOODS/SERVICES - TELECOMS - TELEPHONE,IT SERVICE DELIVERY,EXPONENTIAL E LTD,1011716686,-1431.34,Cross Connect,E1 8EU,Admin
FOOD STANDARDS AGENCY - Westminster,FOOD STANDARDS AGENCY - Westminster,2021-08-24,EXP - PURCHASE OF GOODS/SERVICES - TELECOMS - TELEPHONE,IT SERVICE DELIVERY,EXPONENTIAL E LTD,1011716686,-92.4,Cross Connect,E1 8EU,Admin
FOOD STANDARDS AGENCY - Westminster,FOOD STANDARDS AGENCY - Westminster,2021-08-24,EXP - PURCHASE OF GOODS/SERVICES - TELECOMS - TELEPHONE,IT SERVICE DELIVERY,EXPONENTIAL E LTD,1011716686,-286.27,UK VAT - UK VAT,E1 8EU,Admin
FOOD STANDARDS AGENCY - Westminster,FOOD STANDARDS AGENCY - Westminster,2021-08-24,EXP - PURCHASE OF GOODS/SERVICES - TELECOMS - TELEPHONE,IT SERVICE DELIVERY,EXPONENTIAL E LTD,1011716686,-191.56,UK VAT - UK VAT,E1 8EU,Admin
FOOD STANDARDS AGENCY - Westminster,FOOD STANDARDS AGENCY - Westminster,2021-08-24,EXP - PURCHASE OF GOODS/SERVICES - TELECOMS - TELEPHONE,IT SERVICE DELIVERY,EXPONENTIAL E LTD,1011716686,-18.48,UK VAT - UK VAT,E1 8EU,Admin
FOOD STANDARDS AGENCY - Westminster,FOOD STANDARDS AGENCY - Westminster,2021-08-24,EXP - PURCHASE OF GOODS/SERVICES - TELECOMS - TELEPHONE,IT SERVICE DELIVERY,EXPONENTIAL E LTD,1011716686,-957.79,Var11 - Clive House Connections  Redacted under S43 FOI Act Charge,E1 8EU,Admin
FOOD STANDARDS AGENCY - Westminster,FOOD STANDARDS AGENCY - Westminster,2021-08-24,EXP - PURCHASE OF GOODS/SERVICES - TELECOMS - TELEPHONE,IT SERVICE DELIVERY,EXPONENTIAL E LTD,1011716686,11.33,UK VAT - UK VAT,E1 8EU,Admin
FOOD STANDARDS AGENCY - Westminster,FOOD STANDARDS AGENCY - Westminster,2021-08-24,EXP - PURCHASE OF GOODS/SERVICES - TELECOMS - TELEPHONE,IT SERVICE DELIVERY,EXPONENTIAL E LTD,1011716686,56.66,Variation 13 - additional line Redacted under S43 FOI Act,E1 8EU,Admin
FOOD STANDARDS AGENCY - Westminster,FOOD STANDARDS AGENCY - Westminster,2021-08-24,EXP - PURCHASE OF GOODS/SERVICES - TELECOMS - TELEPHONE,IT SERVICE DELIVERY,EXPONENTIAL E LTD,1011716686,398.25,Smartwires Broadband,E1 8EU,Admin
FOOD STANDARDS AGENCY - Westminster,FOOD STANDARDS AGENCY - Westminster,2021-08-24,EXP - PURCHASE OF GOODS/SERVICES - TELECOMS - TELEPHONE,IT SERVICE DELIVERY,EXPONENTIAL E LTD,1011716686,522.25,Smartwires Broadband,E1 8EU,Admin
FOOD STANDARDS AGENCY - Westminster,FOOD STANDARDS AGENCY - Westminster,2021-08-24,EXP - PURCHASE OF GOODS/SERVICES - TELECOMS - TELEPHONE,IT SERVICE DELIVERY,EXPONENTIAL E LTD,1011716686,522.25,Smartwires Broadband,E1 8EU,Admin
FOOD STANDARDS AGENCY - Westminster,FOOD STANDARDS AGENCY - Westminster,2021-08-24,EXP - PURCHASE OF GOODS/SERVICES - TELECOMS - TELEPHONE,IT SERVICE DELIVERY,EXPONENTIAL E LTD,1011716686,8395.32,Smartwires Broadband,E1 8EU,Admin
FOOD STANDARDS AGENCY - Westminster,FOOD STANDARDS AGENCY - Westminster,2021-08-24,EXP - PURCHASE OF GOODS/SERVICES - TELECOMS - TELEPHONE,IT SERVICE DELIVERY,EXPONENTIAL E LTD,1011716686,8395.32,Smartwires Broadband,E1 8EU,Admin
FOOD STANDARDS AGENCY - Westminster,FOOD STANDARDS AGENCY - Westminster,2021-08-24,EXP - PURCHASE OF GOODS/SERVICES - TELECOMS - TELEPHONE,IT SERVICE DELIVERY,EXPONENTIAL E LTD,1011716686,8442.22,Smartwires Broadband,E1 8EU,Admin
FOOD STANDARDS AGENCY - Westminster,FOOD STANDARDS AGENCY - Westminster,2021-08-24,EXP - PURCHASE OF GOODS/SERVICES - TELECOMS - TELEPHONE,IT SERVICE DELIVERY,EXPONENTIAL E LTD,1011716686,79.65,UK VAT - UK VAT,E1 8EU,Admin
FOOD STANDARDS AGENCY - Westminster,FOOD STANDARDS AGENCY - Westminster,2021-08-24,EXP - PURCHASE OF GOODS/SERVICES - TELECOMS - TELEPHONE,IT SERVICE DELIVERY,EXPONENTIAL E LTD,1011716686,104.45,UK VAT - UK VAT,E1 8EU,Admin
FOOD STANDARDS AGENCY - Westminster,FOOD STANDARDS AGENCY - Westminster,2021-08-24,EXP - PURCHASE OF GOODS/SERVICES - TELECOMS - TELEPHONE,IT SERVICE DELIVERY,EXPONENTIAL E LTD,1011716686,104.45,UK VAT - UK VAT,E1 8EU,Admin
FOOD STANDARDS AGENCY - Westminster,FOOD STANDARDS AGENCY - Westminster,2021-08-24,EXP - PURCHASE OF GOODS/SERVICES - TELECOMS - TELEPHONE,IT SERVICE DELIVERY,EXPONENTIAL E LTD,1011716686,1679.06,UK VAT - UK VAT,E1 8EU,Admin
FOOD STANDARDS AGENCY - Westminster,FOOD STANDARDS AGENCY - Westminster,2021-08-24,EXP - PURCHASE OF GOODS/SERVICES - TELECOMS - TELEPHONE,IT SERVICE DELIVERY,EXPONENTIAL E LTD,1011716686,1679.06,UK VAT - UK VAT,E1 8EU,Admin
FOOD STANDARDS AGENCY - Westminster,FOOD STANDARDS AGENCY - Westminster,2021-08-24,EXP - PURCHASE OF GOODS/SERVICES - TELECOMS - TELEPHONE,IT SERVICE DELIVERY,EXPONENTIAL E LTD,1011716686,1688.44,UK VAT - UK VAT,E1 8EU,Admin
FOOD STANDARDS AGENCY - Westminster,FOOD STANDARDS AGENCY - Westminster,2021-08-24,EXP - PURCHASE OF GOODS/SERVICES - TELECOMS - TELEPHONE,IT SERVICE DELIVERY,EXPONENTIAL E LTD,1011716686,25.83,"FSA Offices (Clive, Foss, Southgate, Clarendon)",E1 8EU,Admin
FOOD STANDARDS AGENCY - Westminster,FOOD STANDARDS AGENCY - Westminster,2021-08-24,EXP - PURCHASE OF GOODS/SERVICES - TELECOMS - TELEPHONE,IT SERVICE DELIVERY,EXPONENTIAL E LTD,1011716686,25.83,"FSA Offices (Clive, Foss, Southgate, Clarendon)",E1 8EU,Admin
FOOD STANDARDS AGENCY - Westminster,FOOD STANDARDS AGENCY - Westminster,2021-08-24,EXP - PURCHASE OF GOODS/SERVICES - TELECOMS - TELEPHONE,IT SERVICE DELIVERY,EXPONENTIAL E LTD,1011716686,25.83,"FSA Offices (Clive, Foss, Southgate, Clarendon)",E1 8EU,Admin
FOOD STANDARDS AGENCY - Westminster,FOOD STANDARDS AGENCY - Westminster,2021-08-24,EXP - PURCHASE OF GOODS/SERVICES - TELECOMS - TELEPHONE,IT SERVICE DELIVERY,EXPONENTIAL E LTD,1011716686,464.75,"FSA Offices (Clive, Foss, Southgate, Clarendon)",E1 8EU,Admin
FOOD STANDARDS AGENCY - Westminster,FOOD STANDARDS AGENCY - Westminster,2021-08-24,EXP - PURCHASE OF GOODS/SERVICES - TELECOMS - TELEPHONE,IT SERVICE DELIVERY,EXPONENTIAL E LTD,1011716686,464.75,"FSA Offices (Clive, Foss, Southgate, Clarendon)",E1 8EU,Admin
FOOD STANDARDS AGENCY - Westminster,FOOD STANDARDS AGENCY - Westminster,2021-08-24,EXP - PURCHASE OF GOODS/SERVICES - TELECOMS - TELEPHONE,IT SERVICE DELIVERY,EXPONENTIAL E LTD,1011716686,5.17,UK VAT - UK VAT,E1 8EU,Admin
FOOD STANDARDS AGENCY - Westminster,FOOD STANDARDS AGENCY - Westminster,2021-08-24,EXP - PURCHASE OF GOODS/SERVICES - TELECOMS - TELEPHONE,IT SERVICE DELIVERY,EXPONENTIAL E LTD,1011716686,5.17,UK VAT - UK VAT,E1 8EU,Admin
FOOD STANDARDS AGENCY - Westminster,FOOD STANDARDS AGENCY - Westminster,2021-08-24,EXP - PURCHASE OF GOODS/SERVICES - TELECOMS - TELEPHONE,IT SERVICE DELIVERY,EXPONENTIAL E LTD,1011716686,5.17,UK VAT - UK VAT,E1 8EU,Admin
FOOD STANDARDS AGENCY - Westminster,FOOD STANDARDS AGENCY - Westminster,2021-08-24,EXP - PURCHASE OF GOODS/SERVICES - TELECOMS - TELEPHONE,IT SERVICE DELIVERY,EXPONENTIAL E LTD,1011716686,92.95,UK VAT - UK VAT,E1 8EU,Admin
FOOD STANDARDS AGENCY - Westminster,FOOD STANDARDS AGENCY - Westminster,2021-08-24,EXP - PURCHASE OF GOODS/SERVICES - TELECOMS - TELEPHONE,IT SERVICE DELIVERY,EXPONENTIAL E LTD,1011716686,92.95,UK VAT - UK VAT,E1 8EU,Admin
FOOD STANDARDS AGENCY - Westminster,FOOD STANDARDS AGENCY - Westminster,2021-08-24,EXP - PURCHASE OF GOODS/SERVICES - TELECOMS - TELEPHONE,IT SERVICE DELIVERY,EXPONENTIAL E LTD,1011716686,23.5,Plant Lines,E1 8EU,Admin
FOOD STANDARDS AGENCY - Westminster,FOOD STANDARDS AGENCY - Westminster,2021-08-24,EXP - PURCHASE OF GOODS/SERVICES - TELECOMS - TELEPHONE,IT SERVICE DELIVERY,EXPONENTIAL E LTD,1011716686,23.5,Plant Lines,E1 8EU,Admin
FOOD STANDARDS AGENCY - Westminster,FOOD STANDARDS AGENCY - Westminster,2021-08-24,EXP - PURCHASE OF GOODS/SERVICES - TELECOMS - TELEPHONE,IT SERVICE DELIVERY,EXPONENTIAL E LTD,1011716686,56.66,Plant Lines,E1 8EU,Admin
FOOD STANDARDS AGENCY - Westminster,FOOD STANDARDS AGENCY - Westminster,2021-08-24,EXP - PURCHASE OF GOODS/SERVICES - TELECOMS - TELEPHONE,IT SERVICE DELIVERY,EXPONENTIAL E LTD,1011716686,114.99,Plant Lines,E1 8EU,Admin
FOOD STANDARDS AGENCY - Westminster,FOOD STANDARDS AGENCY - Westminster,2021-08-24,EXP - PURCHASE OF GOODS/SERVICES - TELECOMS - TELEPHONE,IT SERVICE DELIVERY,EXPONENTIAL E LTD,1011716686,140,Plant Lines,E1 8EU,Admin
FOOD STANDARDS AGENCY - Westminster,FOOD STANDARDS AGENCY - Westminster,2021-08-24,EXP - PURCHASE OF GOODS/SERVICES - TELECOMS - TELEPHONE,IT SERVICE DELIVERY,EXPONENTIAL E LTD,1011716686,162.9,Plant Lines,E1 8EU,Admin
FOOD STANDARDS AGENCY - Westminster,FOOD STANDARDS AGENCY - Westminster,2021-08-24,EXP - PURCHASE OF GOODS/SERVICES - TELECOMS - TELEPHONE,IT SERVICE DELIVERY,EXPONENTIAL E LTD,1011716686,173.37,Plant Lines,E1 8EU,Admin
FOOD STANDARDS AGENCY - Westminster,FOOD STANDARDS AGENCY - Westminster,2021-08-24,EXP - PURCHASE OF GOODS/SERVICES - TELECOMS - TELEPHONE,IT SERVICE DELIVERY,EXPONENTIAL E LTD,1011716686,195.67,Plant Lines,E1 8EU,Admin
FOOD STANDARDS AGENCY - Westminster,FOOD STANDARDS AGENCY - Westminster,2021-08-24,EXP - PURCHASE OF GOODS/SERVICES - TELECOMS - TELEPHONE,IT SERVICE DELIVERY,EXPONENTIAL E LTD,1011716686,275.25,Plant Lines,E1 8EU,Admin
FOOD STANDARDS AGENCY - Westminster,FOOD STANDARDS AGENCY - Westminster,2021-08-24,EXP - PURCHASE OF GOODS/SERVICES - TELECOMS - TELEPHONE,IT SERVICE DELIVERY,EXPONENTIAL E LTD,1011716686,4.7,UK VAT - UK VAT,E1 8EU,Admin
FOOD STANDARDS AGENCY - Westminster,FOOD STANDARDS AGENCY - Westminster,2021-08-24,EXP - PURCHASE OF GOODS/SERVICES - TELECOMS - TELEPHONE,IT SERVICE DELIVERY,EXPONENTIAL E LTD,1011716686,4.7,UK VAT - UK VAT,E1 8EU,Admin
FOOD STANDARDS AGENCY - Westminster,FOOD STANDARDS AGENCY - Westminster,2021-08-24,EXP - PURCHASE OF GOODS/SERVICES - TELECOMS - TELEPHONE,IT SERVICE DELIVERY,EXPONENTIAL E LTD,1011716686,11.33,UK VAT - UK VAT,E1 8EU,Admin
FOOD STANDARDS AGENCY - Westminster,FOOD STANDARDS AGENCY - Westminster,2021-08-24,EXP - PURCHASE OF GOODS/SERVICES - TELECOMS - TELEPHONE,IT SERVICE DELIVERY,EXPONENTIAL E LTD,1011716686,23,UK VAT - UK VAT,E1 8EU,Admin
FOOD STANDARDS AGENCY - Westminster,FOOD STANDARDS AGENCY - Westminster,2021-08-24,EXP - PURCHASE OF GOODS/SERVICES - TELECOMS - TELEPHONE,IT SERVICE DELIVERY,EXPONENTIAL E LTD,1011716686,28,UK VAT - UK VAT,E1 8EU,Admin
FOOD STANDARDS AGENCY - Westminster,FOOD STANDARDS AGENCY - Westminster,2021-08-24,EXP - PURCHASE OF GOODS/SERVICES - TELECOMS - TELEPHONE,IT SERVICE DELIVERY,EXPONENTIAL E LTD,1011716686,32.58,UK VAT - UK VAT,E1 8EU,Admin
FOOD STANDARDS AGENCY - Westminster,FOOD STANDARDS AGENCY - Westminster,2021-08-24,EXP - PURCHASE OF GOODS/SERVICES - TELECOMS - TELEPHONE,IT SERVICE DELIVERY,EXPONENTIAL E LTD,1011716686,34.67,UK VAT - UK VAT,E1 8EU,Admin
FOOD STANDARDS AGENCY - Westminster,FOOD STANDARDS AGENCY - Westminster,2021-08-24,EXP - PURCHASE OF GOODS/SERVICES - TELECOMS - TELEPHONE,IT SERVICE DELIVERY,EXPONENTIAL E LTD,1011716686,39.13,UK VAT - UK VAT,E1 8EU,Admin
FOOD STANDARDS AGENCY - Westminster,FOOD STANDARDS AGENCY - Westminster,2021-08-24,EXP - PURCHASE OF GOODS/SERVICES - TELECOMS - TELEPHONE,IT SERVICE DELIVERY,EXPONENTIAL E LTD,1011716686,55.05,UK VAT - UK VAT,E1 8EU,Admin
FOOD STANDARDS AGENCY - Westminster,FOOD STANDARDS AGENCY - Westminster,2021-08-24,EXP - PURCHASE OF GOODS/SERVICES - TELECOMS - TELEPHONE,IT SERVICE DELIVERY,EXPONENTIAL E LTD,1011716686,-145.83,PSTN,E1 8EU,Admin
FOOD STANDARDS AGENCY - Westminster,FOOD STANDARDS AGENCY - Westminster,2021-08-24,EXP - PURCHASE OF GOODS/SERVICES - TELECOMS - TELEPHONE,IT SERVICE DELIVERY,EXPONENTIAL E LTD,1011716686,23.58,PSTN,E1 8EU,Admin
FOOD STANDARDS AGENCY - Westminster,FOOD STANDARDS AGENCY - Westminster,2021-08-24,EXP - PURCHASE OF GOODS/SERVICES - TELECOMS - TELEPHONE,IT SERVICE DELIVERY,EXPONENTIAL E LTD,1011716686,23.58,PSTN,E1 8EU,Admin
FOOD STANDARDS AGENCY - Westminster,FOOD STANDARDS AGENCY - Westminster,2021-08-24,EXP - PURCHASE OF GOODS/SERVICES - TELECOMS - TELEPHONE,IT SERVICE DELIVERY,EXPONENTIAL E LTD,1011716686,23.58,PSTN,E1 8EU,Admin
FOOD STANDARDS AGENCY - Westminster,FOOD STANDARDS AGENCY - Westminster,2021-08-24,EXP - PURCHASE OF GOODS/SERVICES - TELECOMS - TELEPHONE,IT SERVICE DELIVERY,EXPONENTIAL E LTD,1011716686,56.66,PSTN,E1 8EU,Admin
FOOD STANDARDS AGENCY - Westminster,FOOD STANDARDS AGENCY - Westminster,2021-08-24,EXP - PURCHASE OF GOODS/SERVICES - TELECOMS - TELEPHONE,IT SERVICE DELIVERY,EXPONENTIAL E LTD,1011716686,398.25,PSTN,E1 8EU,Admin
FOOD STANDARDS AGENCY - Westminster,FOOD STANDARDS AGENCY - Westminster,2021-08-24,EXP - PURCHASE OF GOODS/SERVICES - TELECOMS - TELEPHONE,IT SERVICE DELIVERY,EXPONENTIAL E LTD,1011716686,464.75,PSTN,E1 8EU,Admin
FOOD STANDARDS AGENCY - Westminster,FOOD STANDARDS AGENCY - Westminster,2021-08-24,EXP - PURCHASE OF GOODS/SERVICES - TELECOMS - TELEPHONE,IT SERVICE DELIVERY,EXPONENTIAL E LTD,1011716686,41998.75,PSTN,E1 8EU,Admin
FOOD STANDARDS AGENCY - Westminster,FOOD STANDARDS AGENCY - Westminster,2021-08-24,EXP - PURCHASE OF GOODS/SERVICES - TELECOMS - TELEPHONE,IT SERVICE DELIVERY,EXPONENTIAL E LTD,1011716686,-29.17,UK VAT - UK VAT,E1 8EU,Admin
FOOD STANDARDS AGENCY - Westminster,FOOD STANDARDS AGENCY - Westminster,2021-08-24,EXP - PURCHASE OF GOODS/SERVICES - TELECOMS - TELEPHONE,IT SERVICE DELIVERY,EXPONENTIAL E LTD,1011716686,4.72,UK VAT - UK VAT,E1 8EU,Admin
FOOD STANDARDS AGENCY - Westminster,FOOD STANDARDS AGENCY - Westminster,2021-08-24,EXP - PURCHASE OF GOODS/SERVICES - TELECOMS - TELEPHONE,IT SERVICE DELIVERY,EXPONENTIAL E LTD,1011716686,4.72,UK VAT - UK VAT,E1 8EU,Admin
FOOD STANDARDS AGENCY - Westminster,FOOD STANDARDS AGENCY - Westminster,2021-08-24,EXP - PURCHASE OF GOODS/SERVICES - TELECOMS - TELEPHONE,IT SERVICE DELIVERY,EXPONENTIAL E LTD,1011716686,4.72,UK VAT - UK VAT,E1 8EU,Admin
FOOD STANDARDS AGENCY - Westminster,FOOD STANDARDS AGENCY - Westminster,2021-08-24,EXP - PURCHASE OF GOODS/SERVICES - TELECOMS - TELEPHONE,IT SERVICE DELIVERY,EXPONENTIAL E LTD,1011716686,11.33,UK VAT - UK VAT,E1 8EU,Admin
FOOD STANDARDS AGENCY - Westminster,FOOD STANDARDS AGENCY - Westminster,2021-08-24,EXP - PURCHASE OF GOODS/SERVICES - TELECOMS - TELEPHONE,IT SERVICE DELIVERY,EXPONENTIAL E LTD,1011716686,79.65,UK VAT - UK VAT,E1 8EU,Admin
FOOD STANDARDS AGENCY - Westminster,FOOD STANDARDS AGENCY - Westminster,2021-08-24,EXP - PURCHASE OF GOODS/SERVICES - TELECOMS - TELEPHONE,IT SERVICE DELIVERY,EXPONENTIAL E LTD,1011716686,92.95,UK VAT - UK VAT,E1 8EU,Admin
FOOD STANDARDS AGENCY - Westminster,FOOD STANDARDS AGENCY - Westminster,2021-08-24,EXP - PURCHASE OF GOODS/SERVICES - TELECOMS - TELEPHONE,IT SERVICE DELIVERY,EXPONENTIAL E LTD,1011716686,8399.75,UK VAT - UK VAT,E1 8EU,Admin
FOOD STANDARDS AGENCY - Westminster,FOOD STANDARDS AGENCY - Westminster,2021-08-25,EXP - PURCHASE OF GOODS/SERVICES - OTHER ICT COSTS - COMPUTER HARDWARE,IT SERVICE DELIVERY,COREAZURE LTD,1011716695,87585.3,IT24 Var 2 - Azure CSP  Consumption - Redacted under S43 FOI Act,EC1N 8TS,Admin
FOOD STANDARDS AGENCY - Westminster,FOOD STANDARDS AGENCY - Westminster,2021-08-26,EXP - PURCHASE OF GOODS/SERVICES - ACCOMM & BLDNG MGMT - SHARED SITE RECHARGE,SECURITY & ESTATES,NATIONAL LOTTERY COMMUNITY FUND,1011716701,6251.58,Charges for Apex House Redacted under S43 FOI Act,B15 1TR,Admin
FOOD STANDARDS AGENCY - Westminster,FOOD STANDARDS AGENCY - Westminster,2021-08-26,EXP - PURCHASE OF GOODS/SERVICES - ACCOMM & BLDNG MGMT - SHARED SITE RECHARGE,SECURITY & ESTATES,NATIONAL LOTTERY COMMUNITY FUND,1011716701,31257.88,SOP1-817220-901256-174097-CHARGES APEX HOUSE,B15 1TR,Admin
FOOD STANDARDS AGENCY - Westminster,FOOD STANDARDS AGENCY - Westminster,2021-08-26,EXP - SHORT-TERM CONTRACT & AGENCY STAFF - FULL COST,"SCIENCE STRATEGY, CAPABILITY AND RESEARCH",CABINET OFFICE,2011700103,26490,New Line PO11770006343Payment of charges for Science and Engineering Fast streamers Req Chun-Han Chan,SW1A 2AS,Admin
FOOD STANDARDS AGENCY - Westminster,FOOD STANDARDS AGENCY - Westminster,2021-08-27,EXP - PURCHASE OF GOODS/SERVICES - OTHER - PROGRAMME EXPENDITURE,RISK ASSESSMENT - RESEARCH AND DEVELOPMENT,LGC LTD,1011716712,31434.49,National Reference Laboratory in Genetically Modified Organisms Req Bhavna Parmar FS616029,TW11 0LY,Admin
FOOD STANDARDS AGENCY - Westminster,FOOD STANDARDS AGENCY - Westminster,2021-08-27,EXP - PURCHASE OF GOODS/SERVICES - OTHER - PROGRAMME EXPENDITURE,RISK ASSESSMENT - RESEARCH AND DEVELOPMENT,LGC LTD,1011716712,21073.87,National Reference Laboratory in Feed Additives Control and Authorisation. Req Bhavna Parmar FS616035,TW11 0LY,Admin
FOOD STANDARDS AGENCY - Westminster,FOOD STANDARDS AGENCY - Westminster,2021-08-27,EXP - PURCHASE OF GOODS/SERVICES - OTHER - PROGRAMME EXPENDITURE,Surveillance,COGNIZANT WORLDWIDE LTD,1011716709,4720,UK VAT - UK VAT,W2 6BD,Admin
FOOD STANDARDS AGENCY - Westminster,FOOD STANDARDS AGENCY - Westminster,2021-08-27,EXP - PURCHASE OF GOODS/SERVICES - OTHER - PROGRAMME EXPENDITURE,Surveillance,COGNIZANT WORLDWIDE LTD,1011716709,23600,WP16 Azure Data Migration,W2 6BD,Admin
FOOD STANDARDS AGENCY - Westminster,FOOD STANDARDS AGENCY - Westminster,2021-08-27,EXP - PURCHASE OF GOODS/SERVICES - IT MANAGEMENT AND CHANGE - IT DEVELOPMENT,IT STRATEGY & DEVELOPMENT,CHARTERHOUSE,1011716708,21465.94,FS430838 Teams Rooms Proof of Concept (BC838),EC2A 3SB,Admin
FOOD STANDARDS AGENCY - Westminster,FOOD STANDARDS AGENCY - Westminster,2021-08-27,EXP - PURCHASE OF GOODS/SERVICES - IT MANAGEMENT AND CHANGE - IT DEVELOPMENT,IT STRATEGY & DEVELOPMENT,CHARTERHOUSE,1011716708,4293.19,UK VAT - UK VAT,EC2A 3SB,Admin
FOOD STANDARDS AGENCY - Westminster,FOOD STANDARDS AGENCY - Westminster,2021-08-31,EXP - PURCHASE OF GOODS/SERVICES - OTHER - PROGRAMME EXPENDITURE,Surveillance,COGNIZANT WORLDWIDE LTD,1011716716,4720,UK VAT - UK VAT,W2 6BD,Admin
FOOD STANDARDS AGENCY - Westminster,FOOD STANDARDS AGENCY - Westminster,2021-08-31,EXP - PURCHASE OF GOODS/SERVICES - OTHER - PROGRAMME EXPENDITURE,Surveillance,COGNIZANT WORLDWIDE LTD,1011716716,23600,WP16 Azure Data Migration Redacted under S43 FOI Act (BC857),W2 6BD,Admin
FOOD STANDARDS AGENCY - Westminster,FOOD STANDARDS AGENCY - Westminster,2021-08-31,EXP - PURCHASE OF GOODS/SERVICES - OTHER - PROGRAMME EXPENDITURE,Surveillance,COGNIZANT WORLDWIDE LTD,1011716716,20900,Data Science Core Team Redacted under S43 FOI Act (BC881),W2 6BD,Admin
FOOD STANDARDS AGENCY - Westminster,FOOD STANDARDS AGENCY - Westminster,2021-08-31,EXP - PURCHASE OF GOODS/SERVICES - OTHER - PROGRAMME EXPENDITURE,Surveillance,COGNIZANT WORLDWIDE LTD,1011716716,66678,Data Science Core Team Redacted under S43 FOI Act (BC881),W2 6BD,Admin
FOOD STANDARDS AGENCY - Westminster,FOOD STANDARDS AGENCY - Westminster,2021-08-31,EXP - PURCHASE OF GOODS/SERVICES - OTHER - PROGRAMME EXPENDITURE,Surveillance,COGNIZANT WORLDWIDE LTD,1011716716,4180,UK VAT - UK VAT,W2 6BD,Admin
FOOD STANDARDS AGENCY - Westminster,FOOD STANDARDS AGENCY - Westminster,2021-08-31,EXP - PURCHASE OF GOODS/SERVICES - OTHER - PROGRAMME EXPENDITURE,Surveillance,COGNIZANT WORLDWIDE LTD,1011716716,13335.6,UK VAT - UK VAT,W2 6BD,Admin
FOOD STANDARDS AGENCY - Westminster,FOOD STANDARDS AGENCY - Westminster,2021-08-31,EXP - PURCHASE OF GOODS/SERVICES - OTHER - PROGRAMME EXPENDITURE,Surveillance,COGNIZANT WORLDWIDE LTD,1011716716,10745,Data Science Extended Team (BC883),W2 6BD,Admin
FOOD STANDARDS AGENCY - Westminster,FOOD STANDARDS AGENCY - Westminster,2021-08-31,EXP - PURCHASE OF GOODS/SERVICES - OTHER - PROGRAMME EXPENDITURE,Surveillance,COGNIZANT WORLDWIDE LTD,1011716716,2149,UK VAT - UK VAT,W2 6BD,Admin
